fUSD/lending_fUSD_20250119
["ID","MTS","AMOUNT","RATE_DAILY","PERIOD"]
[349573147,1737303047283,-500.0,0.00020546,2]
[349573148,1737303047293,-500.0,0.00020546,2]
[349573149,1737303047303,-500.0,0.00020546,2]
[349573150,1737303047313,-500.0,0.00020547,2]
[349573151,1737303047323,-500.0,0.00020547,2]
[349573152,1737303047333,-500.0,0.00020547,2]
[349573153,1737303047342,-500.0,0.00020547,2]
[349573154,1737303047351,-163.8296541,0.00020547,2]
[349573155,1737303047361,-500.0,0.00020547,2]
[349573156,1737303047370,-935.14,0.00020547,2]
[349573157,1737303047380,-646.07784299,0.00020547,2]
[349573158,1737303047390,-500.0,0.00020547,2]
[349573159,1737303047400,-1200.21,0.00020547,2]
[349573160,1737303047412,-500.0,0.00020547,2]
[349573161,1737303047422,-500.0,0.00020547,2]
[349573162,1737303047432,-500.0,0.00020547,2]
[349573163,1737303047442,-466.4174585,0.00020547,2]
[349573164,1737303047452,-500.0,0.00020547,2]
[349573165,1737303047462,-500.0,0.00020547,2]
[349573166,1737303047471,-500.0,0.00020547,2]
[349573167,1737303047482,-500.0,0.00020547,2]
[349573168,1737303047491,-1000.0,0.00020547,14]
[349573169,1737303047501,-500.0,0.00020547,2]
[349573170,1737303047511,-500.0,0.00020547,2]
[349573171,1737303047520,-500.0,0.00020547,2]
[349573172,1737303047530,-500.0,0.00020547,2]
[349573173,1737303047539,-500.0,0.00020547,2]
[349573174,1737303047549,-500.0,0.00020547,2]
[349573175,1737303047559,-500.0,0.00020547,2]
[349573176,1737303047568,-500.0,0.00020547,2]
[349573177,1737303047578,-565.93465827,0.00020547,2]
[349573178,1737303047587,-578.66,0.00020547,2]
[349573179,1737303047597,-500.0,0.00020547,2]
[349573180,1737303047607,-500.0,0.00020547,2]
[349573181,1737303047616,-500.0,0.00020547,2]
[349573182,1737303047626,-500.0,0.00020547,2]
[349573183,1737303047636,-500.0,0.00020547,2]
[349573184,1737303047645,-500.0,0.00020547,2]
[349573185,1737303047655,-500.0,0.00020547,2]
[349573186,1737303047665,-412.68,0.00020547,2]
[349573187,1737303047675,-568.32033611,0.00020547,2]
[349573188,1737303047685,-509.00735594,0.00020547,2]
[349573189,1737303047694,-500.0,0.00020547,2]
[349573190,1737303047703,-675.49,0.00020547,2]
[349573191,1737303047713,-500.0,0.00020547,2]
[349573192,1737303047723,-500.0,0.00020547,2]
[349573193,1737303047732,-281.64324236,0.00020547,2]
[349573194,1737303047742,-559.42,0.00020547,2]
[349573195,1737303047752,-500.0,0.00020547,2]
[349573196,1737303047761,-500.0,0.00020547,2]
[349573197,1737303047771,-514.41,0.00020547,2]
[349573198,1737303047781,-500.0,0.00020547,2]
[349573199,1737303047791,-500.0,0.00020547,2]
[349573200,1737303047800,-500.0,0.00020547,2]
[349573201,1737303047809,-500.0,0.00020547,2]
[349573202,1737303047819,-689.86,0.00020547,2]
[349573203,1737303047828,-500.0,0.00020547,2]
[349573204,1737303047837,-500.0,0.00020547,2]
[349573205,1737303047846,-500.0,0.00020547,2]
[349573206,1737303047856,-500.0,0.00020547,2]
[349573207,1737303047865,-657.32,0.00020547,2]
[349573208,1737303047874,-500.0,0.00020547,2]
[349573209,1737303047884,-500.0,0.00020547,2]
[349573210,1737303047893,-526.796737,0.00020547,2]
[349573211,1737303047903,-500.0,0.00020547,2]
[349573212,1737303047914,-500.0,0.00020547,2]
[349573213,1737303047924,-1231.04,0.00020547,2]
[349573214,1737303047935,-500.0,0.00020547,2]
[349573215,1737303047945,-537.95400466,0.00020547,2]
[349573216,1737303047956,-500.0,0.00020547,2]
[349573217,1737303047966,-500.0,0.00020547,2]
[349573218,1737303047977,-500.0,0.00020547,2]
[349573219,1737303047990,-323.47659005,0.00020547,2]
[349573220,1737303048000,-500.0,0.00020547,2]
[349573221,1737303048010,-612.39,0.00020547,2]
[349573222,1737303048021,-1701.8,0.00020547,2]
[349573223,1737303048030,-1027.57,0.00020547,2]
[349573224,1737303048040,-500.0,0.00020547,2]
[349573225,1737303048050,-500.0,0.00020547,2]
[349573226,1737303048060,-552.64,0.00020547,2]
[349573227,1737303048072,-1595.23,0.00020547,2]
[349573228,1737303048082,-500.0,0.00020547,2]
[349573229,1737303048092,-500.0,0.00020547,2]
[349573230,1737303048101,-306.96,0.00020547,2]
[349573231,1737303048111,-474.05066036,0.00020547,2]
[349573232,1737303048121,-500.0,0.00020547,2]
[349573233,1737303048131,-500.0,0.00020547,2]
[349573234,1737303048141,-500.0,0.00020547,2]
[349573235,1737303048150,-796.04904258,0.00020556,2]
[349573236,1737303048160,-816.205127,0.0002058,2]
[349573237,1737303048171,-154.05500912,0.0002065,2]
[349573238,1737303048182,-796.04904258,0.00020728,2]
[349573239,1737303048192,-215.977581,0.0002082,2]
[349573240,1737303048201,-500.0,0.0002082,2]
[349573241,1737303048211,-605.44,0.0002082,2]
[349573242,1737303048221,-402.077451,0.0002082,2]
[349573243,1737303048230,-974.87,0.0002082,2]
[349573244,1737303048240,-899.01,0.0002082,2]
[349573245,1737303048249,-500.0,0.0002082,2]
[349573246,1737303048259,-944.29,0.0002082,2]
[349573247,1737303048269,-1199.1,0.0002082,2]
[349573248,1737303048278,-500.0,0.0002082,2]
[349573249,1737303048288,-500.0,0.0002082,2]
[349573250,1737303048297,-186.85818163,0.0002082,2]
[349573251,1737303048309,-500.0,0.0002082,2]
[349573252,1737303048320,-1057.86,0.0002082,2]
[349573253,1737303048330,-519.09,0.0002082,2]
[349573254,1737303048340,-1110.23,0.0002082,2]
[349573255,1737303048350,-500.0,0.0002082,2]
[349573256,1737303048361,-500.0,0.0002082,2]
[349573257,1737303048371,-1005.93,0.0002082,2]
[349573258,1737303048381,-1602.28,0.0002082,2]
[349573259,1737303048391,-607.36914515,0.0002082,2]
[349573260,1737303048402,-429.95430601,0.0002082,2]
[349573261,1737303048414,-621.67,0.0002082,2]
[349573262,1737303048424,-2018.43,0.0002082,2]
[349573263,1737303048435,-500.0,0.0002082,2]
[349573264,1737303048445,-500.0,0.0002082,2]
[349573265,1737303048455,-500.0,0.0002082,2]
[349573266,1737303048465,-500.0,0.0002082,2]
[349573267,1737303048475,-529.36,0.0002082,2]
[349573268,1737303048485,-510.1,0.0002082,2]
[349573269,1737303048495,-329.40186915,0.0002082,2]
[349573270,1737303048504,-500.0,0.0002082,2]
[349573271,1737303048514,-1035.37,0.0002082,2]
[349573272,1737303048524,-500.0,0.0002082,2]
[349573273,1737303048535,-500.0,0.0002082,2]
[349573274,1737303048545,-2123.56,0.0002082,2]
[349573275,1737303048555,-500.0,0.0002082,2]
[349573276,1737303048564,-987.56,0.0002082,2]
[349573277,1737303048573,-725.37,0.0002082,2]
[349573278,1737303048583,-500.0,0.0002082,2]
[349573279,1737303048593,-500.0,0.0002082,2]
[349573280,1737303048603,-500.0,0.0002082,2]
[349573281,1737303048613,-500.0,0.0002082,2]
[349573282,1737303048623,-986.3,0.0002082,2]
[349573283,1737303048632,-944.52,0.0002082,2]
[349573284,1737303048642,-397.79,0.0002082,2]
[349573285,1737303048652,-567.83,0.0002082,2]
[349573286,1737303048662,-500.0,0.0002082,2]
[349573287,1737303048672,-500.0,0.0002082,2]
[349573288,1737303048683,-500.0,0.0002082,2]
[349573289,1737303048693,-500.0,0.0002082,2]
[349573290,1737303048703,-500.0,0.0002082,2]
[349573291,1737303048713,-500.0,0.00020821,2]
[349573292,1737303048723,-500.0,0.00020821,2]
[349573293,1737303048733,-500.0,0.00020821,2]
[349573294,1737303048743,-500.0,0.00020821,2]
[349573295,1737303048753,-500.0,0.00020821,2]
[349573296,1737303048763,-935.14,0.00020821,2]
[349573297,1737303048773,-500.0,0.00020821,2]
[349573298,1737303048783,-1200.21,0.00020821,2]
[349573299,1737303048792,-500.0,0.00020821,2]
[349573300,1737303048802,-500.0,0.00020821,2]
[349573301,1737303048811,-500.0,0.00020821,2]
[349573302,1737303048822,-500.0,0.00020821,2]
[349573303,1737303048832,-500.0,0.00020821,2]
[349573304,1737303048842,-500.0,0.00020821,2]
[349573305,1737303048853,-500.0,0.00020821,2]
[349573306,1737303048863,-832.98802069,0.00020821,14]
[349573307,1737303048874,-432.58511705,0.00020821,2]
[349573308,1737303048884,-500.0,0.00020821,2]
[349573309,1737303048893,-500.0,0.00020821,2]
[349573310,1737303048903,-500.0,0.00020821,2]
[349573311,1737303048914,-500.0,0.00020821,2]
[349573312,1737303048923,-500.0,0.00020821,2]
[349573313,1737303048933,-500.0,0.00020821,2]
[349573314,1737303048943,-500.0,0.00020821,2]
[349573315,1737303048953,-578.66,0.00020821,2]
[349573316,1737303048963,-500.0,0.00020821,2]
[349573317,1737303048973,-500.0,0.00020821,2]
[349573318,1737303048989,-500.0,0.00020821,2]
[349573319,1737303048999,-576.86247526,0.00020821,2]
[349573320,1737303049009,-500.0,0.00020821,2]
[349573321,1737303049018,-500.0,0.00020821,2]
[349573322,1737303049029,-500.0,0.00020821,2]
[349573323,1737303049038,-500.0,0.00020821,2]
[349573324,1737303049048,-675.49,0.00020821,2]
[349573325,1737303049057,-500.0,0.00020821,2]
[349573326,1737303049067,-500.0,0.00020821,2]
[349573327,1737303049077,-559.42,0.00020821,2]
[349573328,1737303049086,-500.0,0.00020821,2]
[349573329,1737303049095,-500.0,0.00020821,2]
[349573330,1737303049104,-514.41,0.00020821,2]
[349573331,1737303049114,-500.0,0.00020821,2]
[349573332,1737303049123,-500.0,0.00020821,2]
[349573333,1737303049133,-500.0,0.00020821,2]
[349573334,1737303049142,-500.0,0.00020821,2]
[349573335,1737303049194,-689.86,0.00020821,2]
[349573336,1737303049204,-500.0,0.00020821,2]
[349573337,1737303049213,-500.0,0.00020821,2]
[349573338,1737303049222,-500.0,0.00020821,2]
[349573339,1737303049232,-500.0,0.00020821,2]
[349573340,1737303049241,-657.32,0.00020821,2]
[349573341,1737303049251,-500.0,0.00020821,2]
[349573342,1737303049260,-500.0,0.00020821,2]
[349573343,1737303049269,-500.0,0.00020821,2]
[349573344,1737303049279,-500.0,0.00020821,2]
[349573345,1737303049288,-1231.04,0.00020821,2]
[349573346,1737303049299,-244.24,0.00020821,2]
[349573347,1737303049309,-500.0,0.00020821,2]
[349573348,1737303049319,-500.0,0.00020821,2]
[349573349,1737303049328,-500.0,0.00020821,2]
[349573350,1737303049338,-500.0,0.00020821,2]
[349573351,1737303049348,-612.39,0.00020821,2]
[349573352,1737303049357,-1701.8,0.00020821,2]
[349573353,1737303049367,-1027.57,0.00020821,2]
[349573354,1737303049377,-343.80814374,0.00020821,2]
[349573355,1737303049386,-500.0,0.00020821,2]
[349573356,1737303049396,-552.64,0.00020821,2]
[349573357,1737303049405,-1595.23,0.00020821,2]
[349573358,1737303049414,-500.0,0.00020821,2]
[349573359,1737303049424,-500.0,0.00020821,2]
[349573360,1737303049433,-500.0,0.00020821,2]
[349573361,1737303049443,-500.0,0.00020821,2]
[349573362,1737303049452,-500.0,0.00020821,2]
[349573363,1737303049461,-500.0,0.00020832,2]
[349573364,1737303049470,-422.75701841,0.0002085,2]
[349573365,1737303049479,-500.38653443,0.00020873,2]
[349573366,1737303049489,-623.01,0.00020876,2]
[349573367,1737303049498,-1000.0,0.00020895,2]
[349573368,1737303049507,-1000.0,0.00020895,2]
[349573369,1737303049516,-1000.0,0.00020895,2]
[349573370,1737303049526,-1000.0,0.00020895,2]
[349573371,1737303049536,-1000.0,0.00020895,2]
[349573372,1737303049545,-1000.0,0.00020895,2]
[349573373,1737303049555,-1136.7765,0.00020895,2]
[349573374,1737303049564,-1119.0,0.000209,2]
[349573375,1737303049573,-100514.892,0.000209,2]
[349573376,1737303049583,-991.2566,0.000209,2]
[349573377,1737303049592,-500.0,0.000209,2]
[349573378,1737303049602,-796.04904258,0.000209,2]
[349573379,1737303049611,-422.75701841,0.000209,2]
[349573380,1737303049621,-154.05500912,0.000209,2]
[349573381,1737303049630,-1457.70162152,0.000209,2]
[349573382,1737303049639,-194.32161878,0.000209,2]
[349573383,1737303049648,-203.54893244,0.000209,2]
[349573384,1737303049657,-616.04190599,0.000209,2]
[349573385,1737303049668,-2011.26666116,0.000209,2]
[349573386,1737303049678,-150.0137927,0.000209,3]
[349573387,1737303049686,-945.8,0.00020962,2]
[349573388,1737303049696,-659.86129654,0.0002099,2]
[349573389,1737303049705,-659.86129654,0.0002099,2]
[349573390,1737303049714,-659.86129654,0.0002099,2]
[349573391,1737303049723,-53695.16989966,0.00021,2]
[349573392,1737303049899,-10468.0,0.00021,2]
[349573393,1737303049915,-1686.45000001,0.00021,2]
[349573394,1737303049926,-547.1,0.00021,2]
[349573395,1737303049938,-250.4,0.00021,2]
[349573396,1737303049957,-4188.07456,0.00021,2]
[349573397,1737303049969,-1699.68651401,0.00021,2]
[349573398,1737303050190,-647.95,0.00019724,2]
[349573399,1737303050200,-500.0,0.00019725,2]
[349573400,1737303050210,-81.2399915,0.00021,2]
[349573401,1737303050518,-308077.94201713,0.00021,2]
[349573402,1737303050530,-26978.36013885,0.00021,2]
[349573403,1737303050729,-500.0,0.00019724,2]
[349573404,1737303050738,-168.635521,0.00019724,2]
[349573405,1737303050749,-500.0,0.00019998,2]
[349573406,1737303050759,-528.88,0.00020272,2]
[349573407,1737303050769,-1.71982436,0.00020272,2]
[349573408,1737303050780,-166.91569664,0.00020272,2]
[349573409,1737303050790,-168.635521,0.0002082,2]
[349573410,1737303050799,-570.70367436,0.00021,2]
[349573411,1737303050815,-200.0,0.000202,7]
[349573412,1737303050825,-83776.83696066,0.00021,2]
[349573413,1737303050834,-439671.42842723,0.00021,15]
[349573414,1737303050845,-9323.4,0.00021,15]
[349573415,1737303050860,-253.17469172,0.00021,15]
[349573416,1737303050871,-8000.0,0.00021,15]
[349573417,1737303050882,-1602.72513,0.00021,15]
[349573418,1737303050894,-10248.86635435,0.00021,15]
[349573419,1737303066144,-4783.52,0.00021066,30]
[349573425,1737303495142,198.17,0.00010137,2]
[349573430,1737303753067,4305.16,0.00018945,30]
[349573437,1737304000130,-260.94149923,0.00016655,2]
[349573456,1737304145117,-431.37850077,0.00016655,2]
[349573457,1737304145140,-172.57586244,0.00016813,2]
[349573466,1737304232053,-25.59413756,0.00016813,2]
[349573467,1737304232062,-524.769339,0.0001833,2]
[349573468,1737304232071,-201.27629016,0.00018423,2]
[349573469,1737304232080,-329.12,0.00018428,2]
[349573470,1737304232090,-300.0,0.00018434,2]
[349573471,1737304232099,-31454.21024843,0.00018435,2]
[349573472,1737304232108,-1500.0,0.00018435,2]
[349573473,1737304232117,-250.0,0.00018499,2]
[349573474,1737304232128,-1000.0,0.00018523,2]
[349573475,1737304232137,-4282.74,0.00018608,2]
[349573476,1737304232146,-166.14,0.00018694,2]
[349573477,1737304232155,-1609.75,0.00018694,2]
[349573478,1737304232165,-1431.42,0.00018726,2]
[349573479,1737304232176,-170.0,0.00018757,2]
[349573480,1737304232185,-2944.11,0.00018758,2]
[349573481,1737304232194,-1128.47,0.00018758,2]
[349573482,1737304232203,-3187.8,0.00018758,2]
[349573483,1737304232212,-29999.99,0.00018758,2]
[349573484,1737304232221,-29999.99,0.00018758,2]
[349573485,1737304232230,-200.0,0.00018834,2]
[349573486,1737304232239,-160.9,0.00018869,2]
[349573487,1737304232248,-692.32,0.00018919,2]
[349573488,1737304232257,-250.0,0.00018949,2]
[349573489,1737304232266,-167.71,0.00018949,2]
[349573490,1737304232276,-280.8,0.00018972,2]
[349573491,1737304232286,-329.12,0.0001911,2]
[349573492,1737304232295,-171.72,0.00019288,2]
[349573493,1737304232304,-200.0,0.00019305,2]
[349573494,1737304232313,-20477.53,0.00019305,2]
[349573495,1737304232322,-608.5514923,0.00019353,2]
[349573496,1737304232331,-608.5514923,0.00019374,2]
[349573497,1737304232347,-200.0,0.00019375,2]
[349573498,1737304232356,-214.1674245,0.00019382,2]
[349573499,1737304232366,-701.64453881,0.00019405,2]
[349573500,1737304232376,-608.5514923,0.00019417,2]
[349573501,1737304232386,-200.0,0.00019424,2]
[349573503,1737304232396,-701.64453881,0.00019437,2]
[349573505,1737304232406,-701.64453881,0.00019439,2]
[349573507,1737304232416,-701.64453881,0.00019456,2]
[349573509,1737304232425,-608.5514923,0.00019456,2]
[349573511,1737304232435,-200.0,0.00019457,2]
[349573513,1737304232445,-701.64453881,0.00019458,2]
[349573515,1737304232455,-200.0,0.00019467,2]
[349573517,1737304232464,-200.0,0.00019468,2]
[349573519,1737304232474,-200.0,0.00019475,2]
[349573521,1737304232484,-608.5514923,0.00019479,2]
[349573523,1737304232494,-214.1674245,0.00019482,2]
[349573525,1737304232503,-214.1674245,0.00019492,2]
[349573527,1737304232513,-214.1674245,0.00019494,2]
[349573529,1737304232522,-214.1674245,0.00019498,2]
[349573530,1737304232532,-274.6899725,0.000195,2]
[349573532,1737304232541,-1411.424,0.00019512,2]
[349573535,1737304232550,-175.099,0.00019512,2]
[349573537,1737304232559,-8222.0,0.00019512,2]
[349573538,1737304232569,-150.0,0.00019513,2]
[349573540,1737304232578,-700.0744,0.00019623,2]
[349573542,1737304232587,-506.22125084,0.00019623,2]
[349573545,1737304232596,-1471.25097406,0.00019624,2]
[349573547,1737304232605,-20403.9339,0.00019624,2]
[349573549,1737304232615,-250.0,0.00019652,2]
[349573551,1737304232629,-538.81679742,0.00019724,2]
[349573553,1737304232638,-500.0,0.00019724,2]
[349573555,1737304232647,-500.0,0.00019724,2]
[349573557,1737304232657,-500.0,0.00019724,2]
[349573559,1737304232666,-500.0,0.00019724,2]
[349573561,1737304232676,-500.0,0.00019724,2]
[349573563,1737304232685,-500.0,0.00019724,2]
[349573565,1737304232694,-500.0,0.00019725,2]
[349573567,1737304232703,-500.0,0.00019725,2]
[349573569,1737304232714,-1471.25097398,0.00019766,2]
[349573571,1737304232723,-503.80058172,0.00019773,2]
[349573573,1737304232733,-329.12,0.00019791,2]
[349573575,1737304232742,-655.20976832,0.00019846,2]
[349573577,1737304232751,-780.8305,0.00019897,2]
[349573579,1737304232761,-216.727777,0.00019897,2]
[349573581,1737304232771,-500.0,0.00019897,2]
[349573583,1737304232780,-500.0,0.00019897,2]
[349573585,1737304232790,-520.92,0.00019897,2]
[349573587,1737304232799,-159.534965,0.00019897,2]
[349573589,1737304232809,-500.0,0.00019897,2]
[349573591,1737304232818,-868.88,0.00019897,2]
[349573593,1737304232827,-500.0,0.00019897,2]
[349573595,1737304232836,-747.56,0.00019897,2]
[349573597,1737304232845,-752.5,0.00019897,2]
[349573599,1737304232855,-465.315771,0.00019897,2]
[349573601,1737304232865,-500.0,0.00019897,2]
[349573603,1737304232878,-949.29,0.00019897,2]
[349573605,1737304232887,-500.0,0.00019897,2]
[349573607,1737304232896,-858.3,0.00019897,2]
[349573608,1737304232906,-500.0,0.00019897,2]
[349573610,1737304232915,-500.0,0.00019897,2]
[349573613,1737304232924,-500.0,0.00019897,2]
[349573614,1737304232933,-1234.62,0.00019897,2]
[349573616,1737304232942,-500.0,0.00019897,2]
[349573618,1737304232952,-817.19,0.00019897,2]
[349573620,1737304232961,-500.0,0.00019897,2]
[349573622,1737304232970,-500.0,0.00019897,2]
[349573624,1737304232979,-1845.79,0.00019897,2]
[349573626,1737304232989,-500.0,0.00019897,2]
[349573628,1737304232998,-500.0,0.00019897,2]
[349573630,1737304233007,-500.0,0.00019897,2]
[349573632,1737304233016,-500.0,0.00019897,2]
[349573634,1737304233025,-500.0,0.00019897,2]
[349573636,1737304233034,-1268.47,0.00019897,2]
[349573638,1737304233043,-500.0,0.00019897,2]
[349573640,1737304233053,-500.0,0.00019897,2]
[349573642,1737304233061,-187.72130664,0.00019897,2]
[349573644,1737304233070,-500.0,0.00019897,2]
[349573646,1737304233080,-500.0,0.00019897,2]
[349573648,1737304233089,-500.0,0.00019897,2]
[349573650,1737304233098,-500.0,0.00019897,2]
[349573652,1737304233108,-1827.32,0.00019897,2]
[349573654,1737304233117,-500.0,0.00019897,2]
[349573656,1737304233130,-503.95,0.00019897,2]
[349573658,1737304233139,-500.0,0.00019897,2]
[349573660,1737304233149,-614.01,0.00019897,2]
[349573662,1737304233158,-500.0,0.00019897,2]
[349573664,1737304233167,-500.0,0.00019897,2]
[349573666,1737304233179,-500.0,0.00019897,2]
[349573668,1737304233189,-819.67,0.00019897,2]
[349573670,1737304233198,-500.0,0.00019897,2]
[349573672,1737304233208,-500.0,0.00019897,2]
[349573674,1737304233217,-1180.63,0.00019897,2]
[349573676,1737304233228,-500.0,0.00019897,2]
[349573678,1737304233238,-500.0,0.00019897,2]
[349573680,1737304233248,-500.0,0.00019897,2]
[349573682,1737304233257,-500.0,0.00019897,2]
[349573684,1737304233268,-500.0,0.00019897,2]
[349573686,1737304233278,-780.82,0.00019897,2]
[349573688,1737304233288,-500.0,0.00019897,2]
[349573690,1737304233298,-500.0,0.00019897,2]
[349573692,1737304233307,-500.0,0.00019897,2]
[349573694,1737304233316,-740.32,0.00019897,2]
[349573696,1737304233326,-500.0,0.00019897,2]
[349573698,1737304233335,-500.0,0.00019897,2]
[349573717,1737304233529,-500.0,0.00019897,2]
[349573720,1737304233539,-500.0,0.00019897,2]
[349573722,1737304233549,-500.0,0.00019897,2]
[349573724,1737304233559,-500.0,0.00019897,2]
[349573726,1737304233569,-500.0,0.00019897,2]
[349573728,1737304233579,-500.0,0.00019897,2]
[349573730,1737304233588,-500.0,0.00019897,2]
[349573732,1737304233598,-747.74,0.00019897,2]
[349573734,1737304233608,-500.0,0.00019897,2]
[349573736,1737304233618,-511.56504729,0.00019897,2]
[349573738,1737304233630,-500.0,0.00019897,2]
[349573740,1737304233640,-500.0,0.00019897,2]
[349573742,1737304233650,-500.0,0.00019897,2]
[349573744,1737304233660,-500.0,0.00019897,2]
[349573746,1737304233670,-500.0,0.00019897,2]
[349573748,1737304233680,-45307.402,0.00019898,2]
[349573750,1737304233690,-208.52001568,0.000199,2]
[349573752,1737304233700,-1471.25097398,0.00019908,2]
[349573754,1737304233709,-500.0,0.00019997,2]
[349573756,1737304233719,-500.0,0.00019997,2]
[349573758,1737304233729,-500.0,0.00019997,2]
[349573760,1737304233738,-500.0,0.00019997,2]
[349573762,1737304233747,-500.0,0.00019997,2]
[349573764,1737304233757,-500.0,0.00019997,2]
[349573766,1737304233767,-632.35408358,0.00019997,2]
[349573768,1737304233777,-500.0,0.00019997,2]
[349573770,1737304233787,-500.0,0.00019997,2]
[349573772,1737304233798,-500.0,0.00019997,2]
[349573774,1737304233808,-500.0,0.00019997,2]
[349573776,1737304233817,-500.0,0.00019997,2]
[349573778,1737304233827,-500.0,0.00019997,2]
[349573780,1737304233836,-500.0,0.00019997,2]
[349573781,1737304233846,-500.0,0.00019997,2]
[349573783,1737304233855,-500.0,0.00019997,2]
[349573785,1737304233865,-500.0,0.00019997,2]
[349573787,1737304233877,-500.0,0.00019997,2]
[349573789,1737304233888,-500.0,0.00019997,2]
[349573792,1737304233897,-500.0,0.00019997,2]
[349573794,1737304233907,-500.0,0.00019997,2]
[349573796,1737304233916,-500.0,0.00019997,2]
[349573797,1737304233926,-500.0,0.00019997,2]
[349573799,1737304233935,-500.0,0.00019997,2]
[349573801,1737304233945,-500.0,0.00019997,2]
[349573803,1737304233954,-500.0,0.00019997,2]
[349573806,1737304233964,-500.0,0.00019997,2]
[349573807,1737304233974,-500.0,0.00019997,2]
[349573809,1737304233984,-501.43182596,0.00019997,2]
[349573811,1737304233994,-500.0,0.00019997,2]
[349573814,1737304234004,-507.08211297,0.00019997,2]
[349573816,1737304234013,-502.89015809,0.00019997,2]
[349573817,1737304234023,-466.96722942,0.00019997,2]
[349573819,1737304234033,-272.093583,0.00019997,2]
[349573821,1737304234043,-170.87606921,0.00019997,2]
[349573824,1737304234054,-574.77,0.00019997,2]
[349573826,1737304234065,-500.0,0.00019997,2]
[349573828,1737304234075,-500.0,0.00019997,2]
[349573830,1737304234085,-500.0,0.00019997,2]
[349573832,1737304234094,-500.0,0.00019997,2]
[349573834,1737304234104,-500.0,0.00019997,2]
[349573836,1737304234114,-500.0,0.00019997,2]
[349573838,1737304234126,-500.0,0.00019997,2]
[349573840,1737304234135,-500.0,0.00019997,2]
[349573842,1737304234145,-500.0,0.00019997,2]
[349573844,1737304234154,-500.0,0.00019997,2]
[349573846,1737304234164,-546.14,0.00019997,2]
[349573847,1737304234174,-500.0,0.00019997,2]
[349573849,1737304234184,-500.0,0.00019997,2]
[349573851,1737304234194,-500.0,0.00019997,2]
[349573853,1737304234204,-500.0,0.00019997,2]
[349573855,1737304234214,-500.0,0.00019997,2]
[349573857,1737304234224,-500.0,0.00019997,2]
[349573860,1737304234234,-500.0,0.00019997,2]
[349573861,1737304234244,-500.0,0.00019997,2]
[349573863,1737304234253,-520.38,0.00019997,2]
[349573865,1737304234262,-500.0,0.00019997,2]
[349573867,1737304234272,-603.13252023,0.00019997,2]
[349573870,1737304234282,-500.0,0.00019997,2]
[349573871,1737304234291,-500.0,0.00019997,2]
[349573873,1737304234301,-500.0,0.00019997,2]
[349573875,1737304234311,-974.58,0.00019997,2]
[349573877,1737304234320,-500.0,0.00019997,2]
[349573879,1737304234329,-547.15,0.00019997,2]
[349573881,1737304234340,-500.0,0.00019997,2]
[349573883,1737304234351,-500.0,0.00019997,2]
[349573885,1737304234360,-500.0,0.00019997,2]
[349573887,1737304234369,-500.0,0.00019997,2]
[349573889,1737304234382,-500.0,0.00019997,2]